bitfinex/quotes_BTCUSD_20220120
["timestamp","ask_amount","ask_price","bid_price","bid_amount"]
[1642711606140,0.439927,42628.0,42627.0,0.001]
[1642711606393,0.058675,42629.0,42627.0,0.001]
[1642711606594,0.01592,42628.0,42627.0,0.001]
[1642711607093,0.01592,42628.0,42627.0,0.00015223]
[1642711607293,0.20978426,42628.0,42627.0,0.00015223]
[1642711607499,0.20978426,42628.0,42627.0,0.00022423]
[1642711608293,0.20978426,42628.0,42627.0,0.00015223]
[1642711608694,0.01598876,42628.0,42627.0,0.00015223]
[1642711609295,6.876e-05,42628.0,42627.0,0.05881361]
[1642711609495,0.36144134,42628.0,42627.0,0.00015223]
[1642711609694,6.876e-05,42628.0,42627.0,0.00015223]
[1642711610441,6.876e-05,42628.0,42627.0,0.05881514]
[1642711610740,0.01598876,42628.0,42627.0,0.05881514]
[1642711611140,2.00006876,42628.0,42627.0,0.05881514]
[1642711611940,2.22432403,42628.0,42627.0,0.05888714]
[1642711612940,2.22432403,42628.0,42627.0,0.05881514]
[1642711613342,2.62150203,42628.0,42627.0,0.00015223]
[1642711615497,2.68017603,42628.0,42627.0,0.00015223]
[1642711616395,2.679729,42628.0,42627.0,0.00015223]
[1642711616994,2.679729,42628.0,42626.0,7.2e-05]
[1642711617197,1.17241605,42627.0,42626.0,7.2e-05]
[1642711617396,1.17241605,42627.0,42625.0,0.00065232]
[1642711617635,1.16944084,42626.0,42625.0,0.00015223]
[1642711617846,1.16944084,42626.0,42624.0,0.00050011]
[1642711617847,1.69659593,42625.0,42624.0,0.00050011]
[1642711618040,1.69659593,42625.0,42618.0,0.41746952]
[1642711618041,0.00122119,42621.0,42618.0,0.41746952]
[1642711618343,0.00128999,42620.0,42619.0,0.36137258]
[1642711618538,0.00128999,42620.0,42619.0,0.36145853]
[1642711618539,0.00122141,42620.0,42619.0,0.36145853]
[1642711618737,2.00006876,42628.0,42620.0,0.29161789]
[1642711618936,2.00006876,42628.0,42624.0,0.00125635]
[1642711619137,2.00006876,42628.0,42626.0,0.28410399]
[1642711619338,2.00006876,42628.0,42627.0,0.0464]
[1642711620441,6.876e-05,42628.0,42627.0,0.0464]
[1642711623493,6.876e-05,42628.0,42624.0,0.36176632]
[1642711623693,6.876e-05,42628.0,42625.0,0.0464]
[1642711624095,6.876e-05,42628.0,42625.0,0.10505381]
[1642711629984,6.876e-05,42628.0,42625.0,0.15505381]
[1642711630185,6.876e-05,42628.0,42625.0,0.10505381]
[1642711630586,6.876e-05,42628.0,42625.0,0.15512581]
[1642711630790,2.00006876,42628.0,42625.0,0.10512581]
[1642711631185,2.00006876,42628.0,42627.0,0.32008231]
[1642711631386,2.00006876,42628.0,42627.0,0.36648231]
[1642711631587,2.00006876,42628.0,42627.0,0.51648231]
[1642711631789,2.00006876,42628.0,42627.0,1.09675431]
[1642711631988,2.00006876,42628.0,42627.0,0.79675431]
[1642711632186,2.00006876,42628.0,42627.0,0.89668231]
[1642711633047,2.00006876,42628.0,42627.0,0.94668231]
[1642711636831,2.00006876,42628.0,42627.0,1.31112958]
[1642711637030,2.00006876,42628.0,42627.0,1.69238758]
[1642711637229,2.00006876,42628.0,42627.0,1.33447357]
[1642711637430,1.53099819,42628.0,42627.0,1.33447357]
[1642711637630,1.53099819,42628.0,42627.0,3.0432702]
[1642711637830,1.53099819,42628.0,42627.0,1.35248357]
[1642711638031,1.2066,42646.0,42630.0,0.00125472]
[1642711638232,0.2905,42646.0,42641.0,0.20929359]
[1642711638431,0.5808,42655.0,42642.0,0.0464]
[1642711638432,0.19875338,42651.0,42642.0,0.0464]
[1642711638831,0.00030942,42646.0,42642.0,0.0464]
[1642711639030,0.00030942,42646.0,42643.0,0.32614159]
[1642711639233,0.00029223,42645.0,42644.0,0.0464]
[1642711639631,0.00037818,42645.0,42644.0,0.0464]
[1642711640240,0.45037818,42645.0,42644.0,0.0464]
[1642711641144,0.00037818,42645.0,42644.0,0.0414]
[1642711643442,0.01585115,42645.0,42644.0,0.0414]
[1642711643646,0.00037818,42645.0,42644.0,0.0414]
[1642711645085,1.74251849,42647.0,42644.0,0.0414]
[1642711645285,1.74132227,42647.0,42644.0,0.0414]
[1642711645484,1.74132227,42647.0,42645.0,8.595e-05]
[1642711645485,1.74251849,42647.0,42645.0,8.595e-05]
[1642711645684,1.74251849,42647.0,42644.0,0.0414]
[1642711645685,1.69251849,42647.0,42644.0,0.0414]
[1642711645884,1.69251849,42647.0,42645.0,8.595e-05]
[1642711646085,1.68751849,42647.0,42645.0,8.595e-05]
[1642711646491,1.68632227,42647.0,42645.0,8.595e-05]
[1642711649143,1.74495927,42647.0,42645.0,8.595e-05]
[1642711649542,0.80426174,42646.0,42645.0,8.595e-05]
[1642711649744,1.481258,42645.0,42638.0,0.42]
[1642711649950,1.539902,42645.0,42638.0,0.42]
[1642711650142,1.539902,42645.0,42639.0,0.00010314]
[1642711650143,0.13276697,42644.0,42639.0,0.00010314]
[1642711650345,0.381258,42643.0,42639.0,0.00010314]
[1642711650543,0.16124637,42642.0,42639.0,0.00010314]
[1642711651145,0.01547297,42640.0,42639.0,0.00010314]
[1642711651400,0.02411597,42641.0,42639.0,0.00010314]
[1642711652296,0.01594,42640.0,42639.0,0.00010314]
[1642711654102,0.00119627,42642.0,42639.0,0.00010314]
[1642711654899,0.23842275,42643.0,42639.0,0.00010314]
[1642711655139,0.23961901,42643.0,42639.0,0.00010314]
[1642711655543,0.058637,42642.0,42639.0,0.00010314]
[1642711656941,0.28249882,42642.0,42639.0,0.00010314]
[1642711658143,0.058637,42642.0,42639.0,0.00010314]
[1642711665640,0.058637,42642.0,42640.0,0.00217709]
[1642711666039,0.058637,42642.0,42641.0,6.876e-05]
[1642711666895,0.05598504,42642.0,42641.0,6.876e-05]
[1642711670538,0.05724607,42642.0,42641.0,6.876e-05]
[1642711671638,0.05598504,42642.0,42641.0,6.876e-05]
[1642711672341,0.05598504,42642.0,42641.0,0.00106876]
[1642711673639,0.05963978,42644.0,42641.0,0.00106876]
[1642711674089,0.058632,42644.0,42641.0,0.00099557]
[1642711675096,0.117269,42644.0,42641.0,0.00099557]
[1642711675894,0.73809234,42643.0,42642.0,0.00108815]
[1642711676591,0.058656,42641.0,42638.0,0.42]
[1642711676792,0.92431076,42640.0,42638.0,0.42]
[1642711676992,0.35683434,42639.0,42638.0,0.42]
[1642711677292,0.73809234,42639.0,42638.0,0.42]
[1642711677494,0.7380016,42639.0,42638.0,0.42]
[1642711678454,0.72678889,42639.0,42638.0,0.42]
[1642711680162,0.23170789,42638.0,42628.0,1.59157034]
[1642711680356,0.11733,42634.0,42628.0,1.59157034]
[1642711680555,0.37866845,42633.0,42629.0,0.00020628]
[1642711681155,0.16828898,42632.0,42629.0,0.00020628]
[1642711681398,0.01594,42630.0,42629.0,0.00020628]
[1642711682397,0.01594,42630.0,42629.0,0.38146428]
[1642711682596,0.01594,42630.0,42629.0,0.00020628]
[1642711682999,0.63097055,42630.0,42629.0,0.00020628]
[1642711683298,0.23097055,42630.0,42629.0,0.00020628]
[1642711684499,0.54791828,42630.0,42629.0,0.00020628]
[1642711686453,0.23097055,42630.0,42629.0,0.00020628]
[1642711686653,0.53097055,42630.0,42629.0,0.00020628]
[1642711687055,0.31594,42630.0,42629.0,0.00020628]
[1642711687254,0.01594,42630.0,42629.0,0.00020628]
[1642711687861,0.31526385,42631.0,42629.0,0.00020628]
[1642711688057,0.98553095,42630.0,42629.0,0.00020628]
[1642711688257,1.32222271,42630.0,42629.0,0.00020628]
[1642711689496,0.35263176,42630.0,42629.0,0.00020628]
[1642711689896,0.35263176,42630.0,42628.0,1.58677662]
[1642711690098,0.01594,42630.0,42628.0,1.58677662]
[1642711690296,0.074599,42630.0,42628.0,1.58677662]
[1642711691398,0.13326,42630.0,42628.0,1.58677662]
[1642711691598,0.074599,42630.0,42628.0,1.58677662]
[1642711691799,0.00103265,42631.0,42628.0,1.82348812]
[1642711692001,0.2986,42636.0,42629.0,0.431258]
[1642711692200,0.2986,42636.0,42630.0,0.05864522]
[1642711692400,0.00103265,42631.0,42630.0,0.56729222]
[1642711692646,0.00103265,42631.0,42630.0,1.21779825]
[1642711693047,0.00103265,42631.0,42630.0,1.36779825]
[1642711693244,0.00010314,42635.0,42630.0,1.46053083]
[1642711693445,0.00103265,42633.0,42631.0,0.26647911]
[1642711693644,0.00103265,42633.0,42632.0,1.4824945]
[1642711693844,0.00103265,42633.0,42632.0,1.6288945]
[1642711694044,0.00110141,42633.0,42632.0,1.7288945]
[1642711694446,0.00110141,42633.0,42632.0,0.6288945]
[1642711694447,6.876e-05,42633.0,42632.0,0.6288945]
[1642711695346,6.876e-05,42633.0,42632.0,0.5961685]
[1642711695549,6.876e-05,42633.0,42632.0,0.427638]
[1642711696788,0.01594,42641.0,42632.0,0.427638]
[1642711696989,0.01594,42641.0,42632.0,0.0464]
[1642711697189,0.00103263,42635.0,42628.0,1.58677662]
[1642711697388,0.00103263,42635.0,42629.0,0.381258]
[1642711697588,0.11833863,42635.0,42629.0,0.38132676]
[1642711697789,0.05968263,42635.0,42629.0,0.38132676]
[1642711697990,0.2123532,42631.0,42629.0,6.876e-05]
[1642711698789,0.058665,42630.0,42629.0,6.876e-05]
[1642711698989,0.2710172,42631.0,42629.0,6.876e-05]
[1642711699795,1.09067952,42630.0,42629.0,6.876e-05]
[1642711699994,1.18507952,42630.0,42629.0,6.876e-05]
[1642711700238,0.7944,42630.0,42629.0,6.876e-05]
[1642711700542,1.42218003,42630.0,42629.0,6.876e-05]
[1642711700742,1.80343803,42630.0,42629.0,6.876e-05]
[1642711701140,1.46013389,42630.0,42629.0,6.876e-05]
[1642711702841,1.61013389,42630.0,42629.0,6.876e-05]
[1642711703039,1.65778976,42630.0,42629.0,6.876e-05]
[1642711703441,1.95778976,42630.0,42629.0,6.876e-05]
[1642711703641,1.65778976,42630.0,42629.0,6.876e-05]
[1642711704297,1.50778976,42630.0,42629.0,6.876e-05]
[1642711706298,1.237998,42630.0,42629.0,6.876e-05]
[1642711706501,1.55326103,42630.0,42629.0,6.876e-05]
[1642711706700,1.61496103,42630.0,42629.0,6.876e-05]
[1642711706901,1.76624781,42630.0,42629.0,6.876e-05]
[1642711707501,2.00177536,42630.0,42629.0,6.876e-05]
[1642711708140,1.79007536,42630.0,42629.0,6.876e-05]
[1642711708344,1.89007536,42630.0,42629.0,6.876e-05]
[1642711710145,1.94007536,42630.0,42629.0,6.876e-05]
[1642711710340,1.99007536,42630.0,42629.0,6.876e-05]
[1642711710742,2.00177536,42630.0,42629.0,6.876e-05]
[1642711711608,1.68651233,42630.0,42629.0,6.876e-05]
[1642711712811,1.68651233,42630.0,42628.0,0.29976151]
[1642711712812,1.497198,42629.0,42628.0,0.29976151]
[1642711713011,1.497198,42629.0,42627.0,0.00044166]
[1642711713012,1.1,42628.0,42627.0,0.00044166]
[1642711713213,1.481258,42628.0,42627.0,0.00044166]
[1642711713511,1.581258,42628.0,42627.0,0.00044166]
[1642711713716,1.581258,42628.0,42626.0,0.42]
[1642711714011,0.381258,42627.0,42626.0,0.42]
[1642711714214,0.392458,42627.0,42626.0,0.42]
[1642711714413,0.492458,42627.0,42626.0,0.42]
[1642711717545,0.492458,42627.0,42626.0,0.37478579]
[1642711717744,0.00127743,42625.0,42624.0,0.00044172]
[1642711717947,1.48253543,42625.0,42624.0,0.00044172]
[1642711718143,1.63253543,42625.0,42624.0,0.00052767]
[1642711718545,1.63253543,42625.0,42624.0,8.595e-05]
[1642711718747,1.66017543,42625.0,42624.0,8.595e-05]
[1642711718992,0.11737196,42624.0,42622.0,0.00044175]
[1642711719193,1.74160938,42623.0,42622.0,0.00044175]
[1642711719394,0.89160938,42623.0,42622.0,0.00044175]
[1642711719595,0.89160938,42623.0,42622.0,0.00012033]
[1642711719793,0.9502907,42623.0,42622.0,0.00012033]
[1642711720094,0.05868491,42621.0,42620.0,0.00044178]
[1642711720293,1.49863191,42621.0,42620.0,0.00044178]
[1642711720494,1.49863191,42621.0,42620.0,0.00059649]
[1642711720495,1.49987118,42621.0,42620.0,0.00059649]
[1642711720697,1.59987118,42621.0,42620.0,0.00059649]
[1642711720994,1.59987118,42621.0,42620.0,0.00015471]
[1642711721500,0.00127306,42620.0,42619.0,0.0002439]
[1642711721696,1.28253406,42620.0,42619.0,0.0002439]
[1642711721894,1.33253406,42620.0,42619.0,0.0001719]
[1642711722096,1.43253406,42620.0,42619.0,0.0002439]
[1642711722641,1.7986094,42620.0,42619.0,0.0001719]
[1642711723044,1.108687,42619.0,42618.0,0.00026109]
[1642711723243,1.82049613,42619.0,42618.0,0.00026109]
[1642711723441,1.82049613,42619.0,42618.0,0.00018909]
[1642711723442,1.93643613,42619.0,42618.0,0.00018909]
[1642711723841,1.98643613,42619.0,42618.0,0.00026109]
[1642711724045,1.99813613,42619.0,42618.0,0.00026109]
[1642711724641,1.93643613,42619.0,42618.0,0.00018909]
[1642711725043,1.89511613,42619.0,42617.0,0.00027828]
[1642711725246,1.20450296,42618.0,42617.0,0.00027828]
[1642711725542,1.20450296,42618.0,42617.0,7.2e-05]
[1642711725745,0.897201,42618.0,42617.0,7.2e-05]
[1642711725943,0.058682,42617.0,42615.0,0.00051385]
[1642711726389,0.058682,42617.0,42616.0,0.00022347]
[1642711726593,0.133303,42617.0,42616.0,0.00022347]
[1642711726991,0.133303,42617.0,42616.0,0.00029547]
[1642711727191,0.01594,42617.0,42616.0,0.00022347]
[1642711730243,0.42,42621.0,42615.0,0.15433786]
[1642711730644,6.876e-05,42620.0,42615.0,0.15433786]
[1642711730844,6.876e-05,42620.0,42615.0,0.26300486]
[1642711731245,6.876e-05,42620.0,42615.0,0.32167694]
[1642711731545,6.876e-05,42620.0,42615.0,0.47292564]
[1642711731748,6.876e-05,42620.0,42616.0,0.427661]
[1642711732145,6.876e-05,42620.0,42617.0,0.00017059]
[1642711732344,6.876e-05,42620.0,42619.0,0.058664]
[1642711732545,6.876e-05,42620.0,42619.0,1.636296]
[1642711733044,6.876e-05,42620.0,42619.0,1.577632]
[1642711733245,6.876e-05,42620.0,42619.0,0.477632]
[1642711733445,6.876e-05,42620.0,42619.0,0.427632]
[1642711735409,6.876e-05,42620.0,42619.0,0.477632]
[1642711735608,6.876e-05,42620.0,42619.0,0.527632]
[1642711735807,6.876e-05,42620.0,42619.0,0.477632]
[1642711736107,0.30801246,42626.0,42620.0,0.058667]
[1642711736509,8.595e-05,42625.0,42620.0,0.058667]
[1642711736707,8.595e-05,42625.0,42621.0,0.00044176]
[1642711736913,6.876e-05,42624.0,42621.0,0.00044176]
[1642711737745,6.876e-05,42624.0,42620.0,0.05866739]
[1642711737944,0.05873876,42624.0,42620.0,0.05910916]
[1642711738744,6.876e-05,42624.0,42620.0,0.05910916]
[1642711738946,6.876e-05,42624.0,42620.0,0.05866739]
[1642711739245,6.876e-05,42624.0,42620.0,0.05910917]
[1642711739845,6.876e-05,42624.0,42620.0,0.10910917]
[1642711740046,6.876e-05,42624.0,42620.0,0.10866739]
[1642711740248,6.876e-05,42624.0,42620.0,0.05044178]
[1642711741047,0.11741276,42624.0,42620.0,0.00044178]
[1642711741249,0.05873976,42624.0,42619.0,0.09656996]
[1642711741498,0.058674,42623.0,42620.0,0.00044178]
[1642711741995,0.058674,42623.0,42622.0,0.00016902]
[1642711742196,0.176026,42623.0,42622.0,0.00016902]
[1642711742995,0.058676,42623.0,42622.0,0.00016902]
[1642711743394,6.876e-05,42624.0,42622.0,0.00016902]
[1642711744196,6.876e-05,42624.0,42622.0,0.22318836]
[1642711744796,6.876e-05,42624.0,42622.0,0.18429152]
[1642711746947,6.876e-05,42624.0,42622.0,7.2e-05]
[1642711746948,0.05873776,42624.0,42622.0,7.2e-05]
[1642711747150,6.876e-05,42624.0,42622.0,7.2e-05]
[1642711747648,6.876e-05,42624.0,42621.0,0.00044177]
[1642711748248,6.876e-05,42624.0,42621.0,0.05910731]
[1642711748549,6.876e-05,42624.0,42620.0,0.05]
[1642711748747,0.058676,42623.0,42620.0,0.00044178]
[1642711748990,0.117352,42623.0,42620.0,0.00044178]
[1642711749695,0.35,42622.0,42617.0,0.37981378]
[1642711749892,0.058677,42621.0,42619.0,0.00044179]
[1642711750292,0.381261,42620.0,42619.0,0.00044179]
[1642711750696,0.60683445,42620.0,42619.0,0.00044179]
[1642711750893,0.60683445,42620.0,42617.0,0.37981378]
[1642711751094,0.05868,42619.0,42617.0,0.37981378]
[1642711751693,0.05868,42620.0,42617.0,0.37981378]
[1642711751992,0.01594,42619.0,42617.0,0.37981378]
[1642711752645,0.31527052,42619.0,42617.0,0.37981378]
[1642711753650,0.37394852,42619.0,42617.0,0.37981378]
[1642711753849,0.29954965,42618.0,42617.0,0.37981378]
[1642711754449,0.29946859,42618.0,42617.0,0.37981378]
[1642711757094,0.29946859,42618.0,42617.0,0.37481378]
[1642711757894,0.29946859,42618.0,42617.0,0.36981378]
[1642711758495,0.29946859,42618.0,42615.0,0.00043968]
[1642711758695,0.117374,42617.0,42615.0,0.00043968]
[1642711758896,0.117374,42617.0,42616.0,6.876e-05]
[1642711759097,0.41762529,42617.0,42616.0,6.876e-05]
[1642711759499,0.43356529,42617.0,42616.0,6.876e-05]
[1642711759701,0.81482629,42617.0,42615.0,8.595e-05]
[1642711759898,1.70361644,42616.0,42615.0,8.595e-05]
[1642711760145,0.75361644,42616.0,42615.0,8.595e-05]
[1642711760340,0.381261,42616.0,42615.0,8.595e-05]
[1642711760739,0.431261,42616.0,42615.0,8.595e-05]
[1642711760938,0.931261,42616.0,42615.0,8.595e-05]
[1642711761540,1.03250763,42616.0,42615.0,8.595e-05]
[1642711761741,1.04420763,42616.0,42615.0,8.595e-05]
[1642711761939,0.53250763,42616.0,42615.0,8.595e-05]
[1642711762142,0.38250763,42616.0,42615.0,8.595e-05]
[1642711762339,0.38250763,42616.0,42615.0,0.00015795]
[1642711762743,0.38250763,42616.0,42615.0,8.595e-05]
[1642711763142,0.381261,42616.0,42615.0,0.00015795]
[1642711763342,0.133314,42617.0,42615.0,8.595e-05]
[1642711763742,0.133314,42617.0,42615.0,0.00015795]
[1642711765196,0.128314,42617.0,42615.0,0.00015795]
[1642711766300,0.133324,42617.0,42615.0,0.00015795]
[1642711768846,0.183324,42617.0,42615.0,0.00015795]
[1642711770445,0.133324,42617.0,42615.0,0.00015795]
[1642711771511,0.183324,42617.0,42615.0,0.00015795]
[1642711771711,0.133324,42617.0,42615.0,0.00015795]
[1642711773414,0.133324,42617.0,42615.0,7.2e-05]
[1642711773615,0.117365,42616.0,42613.0,0.23279752]
[1642711773814,0.117365,42616.0,42614.0,0.00043957]
[1642711774416,0.01595,42615.0,42614.0,0.00043957]
[1642711774917,0.074633,42615.0,42613.0,0.23279752]
[1642711775149,0.133317,42615.0,42613.0,0.23279752]
[1642711776647,0.01595,42615.0,42613.0,0.23279752]
[1642711776847,0.01595,42619.0,42613.0,0.22779752]
[1642711777247,0.01601876,42619.0,42613.0,0.22779752]
[1642711777650,0.176038,42618.0,42613.0,0.22779752]
[1642711777851,0.117359,42618.0,42613.0,0.22779752]
[1642711778051,0.058679,42618.0,42613.0,0.22779752]
[1642711778255,0.058679,42618.0,42614.0,0.24419819]
[1642711778652,0.058679,42618.0,42613.0,0.64779752]
[1642711778894,0.058681,42617.0,42613.0,0.64779752]
[1642711779096,0.01601876,42619.0,42615.0,0.00705474]
[1642711779695,0.01601876,42619.0,42616.0,0.18205008]
[1642711779896,6.876e-05,42619.0,42616.0,0.18205008]
[1642711781097,6.876e-05,42619.0,42615.0,0.00705474]
[1642711781297,0.058675,42618.0,42615.0,0.00705474]
[1642711782301,0.176033,42618.0,42615.0,0.00705474]
[1642711782502,0.058681,42617.0,42615.0,0.00705474]
[1642711782746,6.876e-05,42619.0,42615.0,0.00705474]
[1642711783347,6.876e-05,42619.0,42615.0,0.06573]
[1642711783551,6.876e-05,42619.0,42615.0,0.42386293]
[1642711783746,6.876e-05,42619.0,42616.0,0.381261]
[1642711784146,6.876e-05,42619.0,42615.0,0.06697403]
[1642711784348,6.876e-05,42619.0,42615.0,0.00829877]
[1642711784547,0.11742276,42619.0,42615.0,0.00829877]
[1642711784748,0.13337276,42619.0,42615.0,0.00705474]
[1642711785448,0.058681,42618.0,42615.0,0.00705474]
[1642711785649,0.07469376,42619.0,42615.0,0.00705474]
[1642711786152,6.876e-05,42619.0,42615.0,0.00705474]
[1642711786396,6.876e-05,42619.0,42615.0,0.00712674]
[1642711786800,6.876e-05,42619.0,42615.0,0.12447211]
[1642711787898,6.876e-05,42619.0,42615.0,0.06580111]
[1642711788103,6.876e-05,42619.0,42615.0,0.00712674]
[1642711788801,6.876e-05,42619.0,42616.0,0.381261]
[1642711788999,6.876e-05,42619.0,42616.0,7.2e-05]
[1642711789300,6.876e-05,42619.0,42616.0,0.500072]
[1642711789599,6.876e-05,42619.0,42616.0,0.5]
[1642711789899,6.876e-05,42619.0,42616.0,0.500072]
[1642711791047,0.05874376,42619.0,42616.0,0.500072]
[1642711791848,0.058676,42618.0,42616.0,0.500072]
[1642711792248,0.117359,42618.0,42616.0,0.500072]
[1642711792948,0.4805021,42617.0,42616.0,0.500072]
[1642711793149,0.1805021,42617.0,42616.0,0.500072]
[1642711794698,0.117359,42618.0,42616.0,0.500072]
[1642711795298,6.876e-05,42619.0,42617.0,0.229205]
[1642711796798,0.05874476,42619.0,42617.0,0.229205]
[1642711797399,6.876e-05,42619.0,42617.0,0.229205]
[1642711798447,0.11742276,42619.0,42617.0,0.229205]
[1642711799447,0.11742276,42619.0,42616.0,0.5]
[1642711799647,0.458681,42617.0,42616.0,0.5]
[1642711800247,0.66537636,42617.0,42616.0,0.5]
[1642711800451,0.26537636,42617.0,42616.0,0.49993165]
[1642711800751,1.1,42616.0,42615.0,0.00380463]
[1642711800948,1.88109112,42616.0,42615.0,0.00373263]
[1642711801148,1.98232826,42616.0,42615.0,0.00373263]
[1642711801407,0.3104411,42614.0,42613.0,0.22660215]
[1642711801608,0.7917021,42614.0,42613.0,0.22660215]
[1642711802107,0.49844587,42614.0,42613.0,0.22660215]
[1642711802312,0.397211,42614.0,42613.0,0.22660215]
[1642711802507,0.07463,42618.0,42613.0,0.22660215]
[1642711802708,0.01563097,42618.0,42613.0,0.22660215]
[1642711802907,0.01563097,42618.0,42613.0,0.28527922]
[1642711803108,0.01563097,42618.0,42617.0,0.24020814]
[1642711803707,0.058685,42617.0,42613.0,0.22660215]
[1642711804410,0.01563097,42618.0,42613.0,0.22660215]
[1642711804607,0.07431197,42618.0,42613.0,0.22660215]
[1642711804808,0.01563097,42618.0,42613.0,0.22660215]
[1642711805009,0.32606209,42618.0,42613.0,0.22660215]
[1642711805244,0.32606209,42618.0,42616.0,0.21384237]
[1642711805445,0.01563097,42617.0,42616.0,0.21384237]
[1642711805644,0.07431097,42617.0,42616.0,0.21384237]
[1642711805846,0.45342156,42617.0,42616.0,0.21384237]
[1642711806045,0.05868,42617.0,42616.0,0.21384237]
[1642711806246,6.876e-05,42619.0,42616.0,0.21384237]
[1642711808548,0.05874676,42619.0,42616.0,0.21384237]
[1642711808749,0.36108205,42619.0,42616.0,0.21384237]
[1642711809009,0.439947,42618.0,42616.0,0.21384237]
[1642711809209,0.32392155,42617.0,42616.0,0.21384237]
[1642711809611,0.38260855,42617.0,42616.0,0.21384237]
[1642711809810,0.39823952,42617.0,42616.0,0.21384237]
[1642711812963,0.33955252,42617.0,42616.0,0.21384237]
[1642711813463,0.058686,42618.0,42616.0,0.51330493]
[1642711813664,6.876e-05,42619.0,42616.0,0.51330493]
[1642711813862,6.876e-05,42619.0,42616.0,0.55970493]
[1642711814062,6.876e-05,42619.0,42616.0,0.67704107]
[1642711814665,6.876e-05,42619.0,42617.0,0.058668]
[1642711815262,6.876e-05,42619.0,42617.0,0.11733521]
[1642711815462,6.876e-05,42619.0,42618.0,0.731261]
[1642711816163,6.876e-05,42619.0,42618.0,0.381261]
[1642711816409,6.876e-05,42619.0,42617.0,0.11733521]
[1642711816608,6.876e-05,42619.0,42618.0,1.131261]
[1642711817212,6.876e-05,42619.0,42618.0,1.181261]
[1642711819010,6.876e-05,42619.0,42618.0,1.227661]
[1642711819211,6.876e-05,42619.0,42618.0,1.577661]
[1642711819717,6.876e-05,42619.0,42618.0,1.727661]
[1642711819912,6.876e-05,42619.0,42618.0,1.677661]
[1642711820146,6.876e-05,42619.0,42618.0,1.727661]
[1642711820746,6.876e-05,42619.0,42618.0,1.677661]
[1642711822147,6.876e-05,42619.0,42618.0,1.90252693]
[1642711822355,6.876e-05,42619.0,42618.0,2.66883513]
[1642711822549,6.876e-05,42619.0,42618.0,2.65479707]
[1642711822748,0.00119627,42627.0,42620.0,0.117288]
[1642711822949,1.9627,42642.0,42626.0,0.00125382]
[1642711822950,0.00010418,42638.0,42626.0,0.00125382]
[1642711823149,1.9627,42642.0,42627.0,0.4712368]
[1642711823150,0.00010418,42640.0,42627.0,0.4712368]
[1642711823350,0.00010418,42638.0,42637.0,0.18213194]
[1642711823552,0.00032661,42638.0,42637.0,0.22853194]
[1642711825803,0.00032661,42638.0,42637.0,0.27853194]
[1642711826403,0.00032661,42638.0,42637.0,0.22853194]
[1642711828953,0.58752782,42642.0,42638.0,0.05864435]
[1642711828954,0.41963851,42642.0,42638.0,0.05864435]
[1642711829155,0.41963851,42642.0,42639.0,0.0464]
[1642711829156,0.00103617,42640.0,42639.0,0.0464]
[1642711829755,0.00103617,42640.0,42639.0,0.427661]
[1642711830162,0.015,42645.0,42643.0,0.30959435]
[1642711830356,0.015,42645.0,42644.0,0.24012969]
[1642711830657,0.21302652,42648.0,42644.0,0.24012969]
[1642711830855,0.015,42645.0,42644.0,0.24012969]
[1642711831055,0.00015471,42647.0,42644.0,0.24012969]
[1642711831499,0.00013752,42646.0,42644.0,0.24012969]
[1642711831699,0.00013752,42646.0,42643.0,0.05863602]
[1642711831904,0.38138133,42645.0,42643.0,0.05863602]
[1642711832100,0.00103217,42647.0,42643.0,0.05863602]
[1642711832310,1.4083,42651.0,42645.0,0.95]
[1642711832502,0.015,42647.0,42646.0,0.44766383]
[1642711832705,0.9883,42651.0,42646.0,3.11095491]
[1642711832706,6.876e-05,42649.0,42646.0,3.11095491]
[1642711832905,6.876e-05,42649.0,42647.0,0.103085]
[1642711833105,8.595e-05,42650.0,42648.0,0.175061]
[1642711833302,8.595e-05,42650.0,42649.0,0.71337646]
[1642711833503,8.595e-05,42650.0,42649.0,0.85977646]
[1642711833702,8.595e-05,42650.0,42649.0,0.91100678]
[1642711833903,0.9892,42662.0,42651.0,0.17583542]
[1642711834103,0.35008848,42665.0,42660.0,0.00120036]
[1642711834303,0.3548802,42665.0,42664.0,0.00127795]
[1642711834504,9.0,42666.0,42664.0,0.16401403]
[1642711834505,0.38092161,42666.0,42664.0,0.16401403]
[1642711834705,0.38092161,42666.0,42665.0,1.7195711]
[1642711834905,0.1998,42684.0,42666.0,1.05]
[1642711835167,0.1948,42684.0,42675.0,0.00122936]
[1642711835367,0.1948,42684.0,42675.0,0.08424]
[1642711835368,0.19500824,42684.0,42675.0,0.08424]
[1642711835569,0.19500824,42684.0,42675.0,0.13424]
[1642711835570,0.21603933,42678.0,42675.0,0.13424]
[1642711835762,0.1948,42684.0,42675.0,0.13424]
[1642711835963,0.38146918,42683.0,42679.0,0.2597763]
[1642711836163,0.439856,42683.0,42679.0,0.2597763]
[1642711836365,0.0011959,42682.0,42679.0,0.2597763]
[1642711836664,0.0005329,42681.0,42680.0,0.0464]
[1642711836864,0.18944278,42681.0,42680.0,0.0464]
[1642711837467,0.0005329,42681.0,42680.0,0.0464]
[1642711837666,0.0011959,42683.0,42680.0,0.0464]
[1642711837869,0.9506288,42685.0,42681.0,0.24875813]
[1642711838069,0.9456288,42685.0,42681.0,0.34515813]
[1642711838368,0.058585,42690.0,42681.0,0.28657602]
[1642711838567,0.00020815,42688.0,42682.0,0.195336]
[1642711838769,0.01489751,42689.0,42687.0,0.2731675]
[1642711839203,0.00012033,42688.0,42687.0,0.2731675]
[1642711840203,0.01001784,42689.0,42687.0,0.2731675]
[1642711840406,0.0008087,42690.0,42688.0,0.0464]
[1642711840602,0.01245767,42689.0,42688.0,0.0464]
[1642711840802,0.0008087,42690.0,42688.0,0.0464]
[1642711841003,0.43563097,42693.0,42688.0,0.0464]
[1642711841204,0.058577,42697.0,42688.0,0.0464]
[1642711841404,6.876e-05,42692.0,42688.0,0.0464]
[1642711842002,0.06098876,42696.0,42688.0,0.0464]
[1642711842204,0.058581,42694.0,42688.0,0.0464]
[1642711842658,0.05,42696.0,42688.0,0.0464]
[1642711842859,0.381097,42695.0,42688.0,0.0469]
[1642711843062,0.058581,42693.0,42688.0,0.0469]
[1642711843262,0.18190912,42691.0,42688.0,0.0005]
[1642711843458,0.381097,42690.0,42688.0,0.0005]
[1642711843659,0.01592,42689.0,42688.0,0.0005]
[1642711843859,0.997017,42689.0,42688.0,0.0005]
[1642711844059,1.29793697,42689.0,42688.0,0.00056876]
[1642711844259,1.35653197,42689.0,42688.0,0.00056876]
[1642711844460,1.29793697,42689.0,42688.0,0.00056876]
[1642711845858,1.24793697,42689.0,42688.0,0.00056876]
[1642711846059,0.64293697,42689.0,42688.0,0.00056876]
[1642711846258,1.06793697,42689.0,42688.0,0.00056876]
[1642711846501,0.698124,42689.0,42688.0,0.00056876]
[1642711847201,1.08502637,42689.0,42688.0,0.00056876]
[1642711847402,1.40454433,42689.0,42688.0,0.00056876]
[1642711847605,0.0586,42687.0,42678.0,0.00051449]
[1642711847803,0.00129037,42683.0,42678.0,0.00051449]